[Event "FIDE Womens Candidates Pool-B 2022-23"]
[Site "Khiva"]
[Date "2022.12.10"]
[Round "2.4"]
[White "Tan, Zhongyi"]
[Black "Goryachkina, Aleksandra"]
[Result "1-0"]
[ECO "D52"]
[WhiteElo "2514"]
[BlackElo "2584"]
[Annotator "TA"]
[PlyCount "79"]
[EventDate "2022.11.28"]
[EventType "k.o."]
[EventCountry "UZB"]
[SourceTitle "playchess.com"]
[Source "ChessBase"]
[SourceQuality "1"]
[TimeControl "40/5400+30:1800+30"]

{[%evp 13,79,29,20,25,33,33,23,27,45,40,43,12,12,16,15,8,12,14,21,15,5,8,113,129,155,178,169,168,176,176,176,117,114,135,127,92,106,115,101,77,160,128,129,114,118,112,111,116,127,78,68,78,197,200,532,468,628,628,621,619,578,568,29975,29975,6170,6170,753,464]} 1. d4 {[%emt 0:00:04]} d5 {[%emt 0:00:11]} 2. c4 {[%emt 0:00:06]} c6 {[%emt 0:00:04]} 3. Nf3 {[%emt 0:00:04]} Nf6 {[%emt 0:00:05]} 4. Nc3 {[%emt 0:00:04]} e6 {[%emt 0:00:12]} 5. Bg5 {[%emt 0:00:08]} Nbd7 {[%emt 0:00:11]} 6. e3 {[%emt 0:00:07]} Qa5 {[%emt 0:01:01]} 7. cxd5 {[%emt 0:00:07]} Nxd5 {[%emt 0:00:52]} 8. Rc1 {[%emt 0:00:08] D52: Queen's Gambit Declined: Cambridge Springs Variation.} h6 {[%emt 0:01:18] 8...Bb4 is the modern continuation.} 9. Bh4 {[%emt 0:00:05]} Nxc3 {[%emt 0:01:16]} 10. bxc3 {[%emt 0:00:07][%cal Bb2c3,Bc3c4,Bc4c5][%mdl 32] White has an edge.} Ba3 {[%emt 0:00:24]} 11. Rc2 {[%emt 0:00:05]} b6 {[%emt 0:00:52]} 12. Nd2 {[%emt 0:00:09]} (12. Ne5 Nxe5 13. dxe5 Bb7 $15) 12... Ba6 {[%emt 0:03:20]} 13. c4 {[%emt 0:00:13]} O-O {[%emt 0:02:37]} 14. Bd3 {[%emt 0:00:14]} c5 {[%emt 0:01:59]} 15. O-O {[%emt 0:01:12]} cxd4 {[%emt 0:01:05]} 16. exd4 {[%emt 0:00:07]} Rfe8 {[%emt 0:04:35]} 17. Qe2 {[%emt 0:04:38][%cal Oc4c5] [#]} Rac8 $146 {[%emt 0:03:46] Prevents c5.} (17... Bb4 $11 {remains equal.}) ({Predecessor:} 17... Bb4 18. Rd1 Rac8 19. h3 Nf8 20. Qg4 Nd7 21. Qe4 Nf8 22. Qg4 Nd7 23. Qe4 {½-½ (23) Haapamaeki,M (2316)-Raivio,P (2359) ICCF email 2018}) 18. c5 $1 $16 {[%emt 0:04:47]} (18. Qe4 $6 g6 $11) 18... Qa4 {[%emt 0:19:48][%cal Rb6c5]} 19. Bxa6 {[%emt 0:04:01]} Qxc2 {[%emt 0:01:26]} 20. Bxc8 {[%emt 0:00:06]} Rxc8 {[%emt 0:04:12]} 21. Qa6 {[%emt 0:00:07][%csl LRa3,LRa7,LRc8]} Rc7 {[%emt 0:09:39]} 22. Bg3 {[%emt 0:09:36]} (22. Bd8 $18 Nb8 23. Qxa3) 22... e5 {[%emt 0:01:06] [#]} 23. Nf3 {[%emt 0:00:53]} (23. Bxe5 Nxe5 24. cxb6 axb6 25. Qxa3 (25. dxe5 Bc5 $11) 25... Qxd2 $14) 23... Bxc5 {[%emt 0:03:44]} 24. dxc5 {[%emt 0:01:27]} Nxc5 {[%emt 0:00:08]} 25. Qa3 {[%emt 0:03:18]} f6 {[%emt 0:01:34]} 26. Rc1 {[%emt 0:12:18]} Qg6 {[%emt 0:02:08]} ({Black should play} 26... Qe2) 27. Nh4 {[%emt 0:04:12]} Qf7 {[%emt 0:02:55]} 28. Rd1 {[%emt 0:05:35]} Rd7 {[%emt 0:08:43]} 29. Rxd7 {[%emt 0:00:07]} Qxd7 {[%emt 0:00:02][%cal Rd7d1] [#]} 30. h3 $1 {[%emt 0:00:08]} e4 {[%emt 0:05:21] Against Qf3} 31. Bb8 {[%emt 0:18:05]} (31. Ng6 $142) 31... g5 {[%emt 0:03:34]} 32. Qxa7 $1 {[%emt 0:00:55]} ({Much weaker is} 32. Ng6 Kf7 33. Ne5+ (33. Nh8+ Kg7 $15) 33... fxe5 $15) 32... gxh4 {[%emt 0:08:25]} (32... Qe6 $16) 33. Qxb6 $14 {[%emt 0:00:27][%mdl 4096] Endgame KQB-KQN} Ne6 {[%emt 0:04:37]} (33... Qb7 {is tougher.} 34. Qd8+ (34. Qxc5 Qb1+ 35. Kh2 Qxb8+ 36. Kh1 Qb1+ 37. Kh2 Qb8+ 38. Kh1 Qb1+ 39. Kh2 Qb8+ $11) 34... Kg7) 34. a4 $1 $18 {[%emt 0:01:20][%cal Ba2a4,Ba4a5][%mdl 32] Threatens to win with a5.} Kf7 {[%emt 0:02:35]} 35. a5 {[%emt 0:05:29]} Nd4 {[%emt 0:01:38]} 36. Qc7 {[%emt 0:09:48]} Ke8 {[%emt 0:00:13]} 37. Qc4 {[%emt 0:01:00] Prevents Ne2+.} Qb7 {[%emt 0:00:39]} 38. Qg8+ {[%emt 0:01:51]} ({Inferior is} 38. Qxd4 Qb1+ 39. Kh2 Qxb8+ 40. g3 hxg3+ 41. fxg3 Qb1 $11) 38... Kd7 {[%emt 0:00:02]} 39. Qf7+ {[%emt 0:00:11]} Kc6 {[%emt 0:00:18]} 40. Qc4+ {[%emt 0:00:06] Weighted Error Value: White=0.07 (flawless) /Black=0.53} 1-0